Cogmind - Beta 17 @@@ ROGUE MODE // 2026.07.15 @ 13:30:31 Player: atom Result: Destroyed by D-53 Grenadier with Mini Grenade Launcher Performance ------------- Evolutions (1) 500 Regions Visited (4) 800 Robots Destroyed (35) 175 Value Destroyed (796) 796 Prototype IDs (4) 80 Alien Tech Used (0) 0 Bonus (0) 0 TOTAL SCORE: 2351 Bonus ------- None Cogmind --------- Core Integrity 0/400 Matter 300/300 Energy 98/100 System Corruption 0% Temperature Cool (0) Movement Core (50) Location -9/Mines Parts ------- > --- POWER (1) -------- (None) > --- PROPULSION (3) --- (None) > --- UTILITY (3) ------ (None) > --- WEAPON (2) ------- (None) > --- INVENTORY (5) ---- Ion Engine High-capacity Battery (250) Recoil Stabilizer Light Armor Plating Hammer Peak State ------------ > --- POWER ------------ Improved Ion Engine > --- PROPULSION ------- Light Treads Light Treads Light Treads > --- UTILITY ---------- Huge Storage Unit High-capacity Battery Hardened Light Armor Plating > --- WEAPON ----------- Spread Laser Improved Medium Laser > --- INVENTORY -------- Ion Engine Light Treads High-capacity Battery Recoil Stabilizer Particle Charger Particle Charger Particle Charger Particle Charger Light Armor Plating Reflective Plating Reflective Plating Medium Laser Medium Laser Hammer [Rating: 16] Favorites ----------- Power Ion Engine Engine Ion Engine Propulsion Light Treads Treads Light Treads Utility Huge Storage Unit Device Terrain Scanner Storage Huge Storage Unit Protection Hardened Light Armor Plating Weapon Medium Laser Energy Gun Medium Laser Launcher Rocket Launcher Impact Weapon Hammer Build | -11 -10 -10 -9 -9 ------- Run | Yrd Mat Min Mat Min Slots Evolved 2 | . . . 2 . Power . | . . . . . Propulsion 1 | . . . 1 . Utility 1 | . . . 1 . Weapon . | . . . . . Parts Attached 18 | 5 4 1 7 1 Power 2 | 1 . . 1 . Engine 2 | 1 . . 1 . Core . | . . . . . Reactor . | . . . . . Propulsion 4 | 2 . . 2 . Treads 4 | 2 . . 2 . Leg . | . . . . . Wheel . | . . . . . Hover . | . . . . . Flight . | . . . . . Utility 5 | . 3 . 2 . Device 1 | . 1 . . . Storage 2 | . 1 . 1 . Processor . | . . . . . Hackware . | . . . . . Protection 2 | . 1 . 1 . Artifact . | . . . . . Weapon 7 | 2 1 1 2 1 Energy Gun 5 | 2 1 . 2 . Energy Cannon . | . . . . . Ballistic Gun . | . . . . . Ballistic Cannon . | . . . . . Launcher 1 | . . 1 . . Special Weapon . | . . . . . Impact Weapon 1 | . . . . 1 Slashing Weapon . | . . . . . Piercing Weapon . | . . . . . Special Melee Weapon . | . . . . . Unidentified Prototypes 1 | . . . 1 . Parts Lost 4 | . . . 1 3 Power 1 | . . . . 1 Propulsion 3 | . . . 1 2 Utility . | . . . . . Weapon . | . . . . . Highest Loss Streak 3 | . . . 1 3 To Critical Strikes 1 | . . . 1 . Average Backups 10 | 2 7 12 13 13 Power 1 | . 1 1 1 1 Propulsion 2 | 1 3 4 1 1 Utility 6 | . 2 6 8 9 Weapon 1 | . . 1 2 2 Tool/Special . | . . . . . Unused Backups 17 | . 2 . 6 9 Power 1 | . . . 1 . Propulsion 4 | . 2 . 1 1 Utility 12 | . . . 4 8 Weapon . | . . . . . Tool/Special . | . . . . . Average Slot Usage (%) 97 | . 94 100 98 100 Engine 12 | . 14 14 11 11 Treads 30 | . 27 28 32 33 Device 1 | . 4 . . . Storage 17 | . 10 14 21 22 Protection 10 | . 8 14 10 11 Energy Gun 23 | . 28 16 20 21 Launcher 1 | . . 11 . . Peak Build Rating 16 | 5 8 9 16 14 Average Rating 10 | 3 6 8 13 13 On Entrance 7 | . 5 8 9 14 Avg Prop Armor Cover (%) . | . . . . . Naked Turns 4 | . . . . 4 Heaviest Build 101 | 9 92 94 101 101 Greatest Support 60 | 40 40 40 60 60 Greatest Overweight (x) 2 | . 2 2 1 1 Average Overweight (x) 1 | . 1 2 1 . Largest Inventory Capacity 25 | 5 25 25 25 25 Average Capacity 22 | 5 19 25 24 24 Most Carried 20 | 5 12 13 20 13 Average Carried 10 | 2 7 12 13 12 Final Capacity 25 | 5 25 25 25 5 Final Carried 13 | 4 12 13 13 5 Class Distribution -------------------- 100% | Mutant Dominant Class ---------------- Mutant | -10/Materials Mutant | -10/Mines Mutant | -9/Materials Mutant | -9/Mines Resources | -11 -10 -10 -9 -9 ----------- Run | Yrd Mat Min Mat Min Matter Collected 588 | 219 81 . 240 48 Remotely . | . . . . . Salvage Created 924 | . 270 48 343 263 Parts 71 | . 20 6 29 16 Haulers Intercepted 2 | . 1 . 1 . Recyclers Shooed . | . . . . . Parts Field Recycled . | . . . . . Retrieved Matter . | . . . . . Parts Self-Destructed . | . . . . . Prevented . | . . . . . Parts Restored . | . . . . . Kills | -11 -10 -10 -9 -9 ------- Run | Yrd Mat Min Mat Min Combat Hostiles Destroyed 28 | . 6 2 13 7 Melee 1 | . . . . 1 Guns 23 | . 5 . 12 6 AOE 2 | . . 2 . . Classes Destroyed 8 | . 4 2 1 1 Worker 2 | . . 1 . 1 Builder 2 | . . 1 1 . Hauler 2 | . 1 . 1 . Watcher 1 | . 1 . . . Swarmer 10 | . 3 . 7 . Grunt 16 | . 3 2 5 6 Brawler 1 | . . . . 1 Sentry 1 | . . . 1 . Best Kill Streak 3 | . 2 2 2 3 Combat Bots Only 3 | . 2 1 2 3 Max Kills in Single Turn 2 | . 1 1 1 2 Gunslinging . | . . . . . Exploded 1 | . . 1 . . Melee 1 | . . . . 1 Uniques/NPCs Destroyed . | . . . . . Combat | -11 -10 -10 -9 -9 -------- Run | Yrd Mat Min Mat Min Hostile Shots Fired 141 | . 29 5 63 44 Missed 26 | . 9 3 10 4 Hits 115 | . 20 2 53 40 Melee 1 | . . . . 1 Projectile 114 | . 20 2 53 39 AOE 8 | . . . . 8 Critical Strikes 3 | . . . 2 1 Damage Taken 1522 | . 197 25 532 768 Core 436 | . 21 . 62 353 Absorbed by Shields . | . . . . . Regen/Repaired (Parts) 205 | . 46 . 159 . Core Remaining (%) 95 | 100 . 91 . . Volleys Fired 105 | . 34 10 45 16 Largest 2 | . 2 1 2 2 Hottest 115 | . 100 33 115 115 Shots Fired 173 | . 47 10 84 32 Gun 163 | . 47 . 84 32 Cannon . | . . . . . Launcher 10 | . . 10 . . Special . | . . . . . Kinetic . | . . . . . Thermal 156 | . 40 . 84 32 Explosive 10 | . . 10 . . Electromagnetic 7 | . 7 . . . Robot Hit Streak 12 | . 12 6 6 8 Robot Miss Streak 9 | . 5 1 9 6 Penetration Max . | . . . . . Secondary Targets 1 | . . . 1 . Max Gunslinging Chain 1 | . . . 1 . Shots Hit Robots 117 | . 27 4 58 28 Core Hits 95 | . 12 6 52 25 Critical Kills . | . . . . . Critical Parts Destroyed . | . . . . . Critical Strikes 8 | . 1 . 6 1 Burn 8 | . 1 . 6 1 Melee Attacks 1 | . . . . 1 Impact 1 | . . . . 1 Slashing . | . . . . . Piercing . | . . . . . Sneak Attacks . | . . . . . Combat Hostiles . | . . . . . Follow-up Attacks . | . . . . . Damage Inflicted 1754 | . 351 309 681 413 Guns 1404 | . 351 . 681 372 Cannons . | . . . . . Explosions 309 | . . 309 . . Melee 29 | . . . . 29 Ramming 12 | . . . . 12 Kinetic . | . . . . . Thermal 1311 | . 258 . 681 372 Explosive 309 | . . 309 . . Electromagnetic 93 | . 93 . . . Impact 29 | . . . . 29 Slashing . | . . . . . Piercing . | . . . . . Highest Corruption . | . . . . . Average Corruption . | . . . . . Corruption Purged . | . . . . . Corruption Blocked . | . . . . . Overload Shots . | . . . . . Overflow Damage 10 | . . 10 . . Projectiles . | . . . . . Explosions 10 | . . 10 . . Melee . | . . . . . Knockbacks . | . . . . . Impact . | . . . . . Kinetic . | . . . . . Secondary . | . . . . . Self-Inflicted Damage . | . . . . . Shots . | . . . . . Rammed 2 | . . . . 2 Targets Rammed 3 | . . . . 3 Kicked . | . . . . . Crushed 1 | . . . . 1 Highest Temperature 442 | . 240 8 354 442 Average Temperature 117 | . 63 5 122 169 Received Heat Transfer 516 | . 69 15 198 234 Effects 16 | . 2 . 4 10 Shutdowns 2 | . . . . 2 Energy Bleed 4 | . . . 2 2 Interference 6 | . 2 . 2 2 Matter Decay 1 | . . . . 1 Damage (major) 3 | . . . . 3 Siege Activations . | . . . . . Martial Activations . | . . . . . Shielding Activations . | . . . . . Robots Disrupted . | . . . . . Combat Hostiles . | . . . . . Robots Corrupted 1 | . 1 . . . Combat Hostiles 1 | . 1 . . . Parts Fried . | . . . . . Impact Corruptions . | . . . . . Robots Melted 1 | . . . 1 . Combat Hostiles 1 | . . . 1 . Parts Melted 6 | . 3 . 3 . Heat Transferred 3542 | . 851 . 1888 803 Parts Sabotaged . | . . . . . Parts Stolen . | . . . . . Parts Stripped . | . . . . . Power Chain Reactions . | . . . . . Alert | -11 -10 -10 -9 -9 ------- Run | Yrd Mat Min Mat Min Maximum Alert Level . | . . . . . Low Security (%) 100 | 100 100 100 100 100 Level 1 . | . . . . . Level 2 . | . . . . . Level 3 . | . . . . . Level 4 . | . . . . . Level 5 . | . . . . . High Security . | . . . . . Max Security . | . . . . . Peak Influence 95 | . 57 66 95 65 Initial 9 | . . . 9 5 Average 20 | . 8 27 37 13 Influence Increases 888 | . 187 126 410 165 Destroy 0b10 Robot/C 560 | . 120 40 260 140 Destroy 0b10 Robot/NC 35 | . 10 10 10 5 Destroy Leader 96 | . 24 10 42 20 Successful Hack 39 | . 18 . 21 . Destroy Structure 68 | . . 66 2 . Lose Combat Pursuer 90 | . 15 . 75 . Influence Decreases 888 | . 187 100 422 179 Entered New Map 26 | . . . 17 9 Time Decay 840 | . 187 100 395 158 Lost Part 22 | . . . 10 12 Squads Dispatched 3 | . . . 3 . Investigation 1 | . . . 1 . Extermination . | . . . . . Reinforcement 2 | . . . 2 . Assault . | . . . . . Garrison . | . . . . . Intercept . | . . . . . Searches Triggered . | . . . . . Construction Impeded . | . . . . . Haulers Reinforced . | . . . . . Active Scanning Responses . | . . . . . Cargo Convoy Interrupts . | . . . . . Stealth | -11 -10 -10 -9 -9 --------- Run | Yrd Mat Min Mat Min Distress Signals 7 | . 2 . 5 . Communications Jammed . | . . . . . Distress Signals . | . . . . . Times Spotted 51 | . 11 2 26 12 Peak Tracking Total 7 | . 3 1 7 5 Tactical Retreats 4 | . 1 . 3 . Traps | -11 -10 -10 -9 -9 ------- Run | Yrd Mat Min Mat Min Traps Triggered . | . . . . . Indirectly . | . . . . . Trap Hack Attempts . | . . . . . Triggered . | . . . . . Disarmed 4 | . 4 . . . Reprogrammed . | . . . . . Reused . | . . . . . Traps Extracted . | . . . . . Installed . | . . . . . Triggered . | . . . . . Machines | -11 -10 -10 -9 -9 ---------- Run | Yrd Mat Min Mat Min Machines Disabled 1 | . 1 . . . Max in Single Turn 1 | . 1 . . . Machines Repaired . | . . . . . Machines Dismantled . | . . . . . Machines Sabotaged . | . . . . . Overloaded Fab Kills . | . . . . . Hacking | -11 -10 -10 -9 -9 --------- Run | Yrd Mat Min Mat Min Machines Accessed 12 | . 5 . 7 . Terminals 6 | . 2 . 4 . Fabricators . | . . . . . Repair Stations 3 | . 1 . 2 . Recycling Units 2 | . 2 . . . Scanalyzers 1 | . . . 1 . Garrison Access . | . . . . . Total Hacks 47 | . 23 . 24 . Successful 32 | . 15 . 17 . Failed 15 | . 8 . 7 . Catastrophic 2 | . 1 . 1 . Database Lockouts . | . . . . . Manual 22 | . 13 . 9 . Terminals 30 | . 14 . 16 . Fabricators . | . . . . . Repair Stations 7 | . 4 . 3 . Recycling Units 5 | . 5 . . . Scanalyzers 5 | . . . 5 . Garrison Access . | . . . . . Terminal Hacks 11 | . 5 . 6 . Prototype ID Bank 2 | . 1 . 1 . Branch Access Points 2 | . 1 . 1 . Terminal Index 1 | . . . 1 . Alert Level 2 | . 1 . 1 . Locate Traps 2 | . 1 . 1 . Disarm Traps 1 | . 1 . . . Zone Layout 1 | . . . 1 . Fabricator Hacks . | . . . . . Repair Station Hacks 4 | . 2 . 2 . Scan Component 2 | . 1 . 1 . Repair 2 | . 1 . 1 . Recycling Unit Hacks 3 | . 3 . . . Report Inventory 2 | . 2 . . . Retrieve Matter 1 | . 1 . . . Scanalyzer 5 | . . . 5 . Insert Component 1 | . . . 1 . Analyze 3 | . . . 3 . Retrieve Study 1 | . . . 1 . Garrison Access Hacks . | . . . . . Unauthorized Hacks 9 | . 5 . 4 . Terminals 6 | . 2 . 4 . Botnet 6 | . 2 . 4 . Fabricators . | . . . . . Repair Stations 1 | . 1 . . . Mechanics 1 | . 1 . . . Recycling Units 2 | . 2 . . . Reject 1 | . 1 . . . Mask 1 | . 1 . . . Scanalyzers . | . . . . . Garrison Access . | . . . . . Data Cores Recovered . | . . . . . Used . | . . . . . Hacking Detections 9 | . 3 . 6 . Full Trace Events 2 | . 1 . 1 . Feedback Events . | . . . . . Feedback Blocked . | . . . . . Robot Schematics Acquired . | . . . . . Robots Built . | . . . . . Authchips . | . . . . . Time . | . . . . . Total Robot Build Rating . | . . . . . Part Schematics Acquired 1 | . . . 1 . Parts Built . | . . . . . Authchips . | . . . . . Time . | . . . . . Total Part Build Rating . | . . . . . Part Studies Acquired 1 | . . . 1 . Parts Repaired 2 | . 1 . 1 . Time 58 | . 26 . 32 . Parts Recycled . | . . . . . Recycled Matter . | . . . . . Retrieved Matter . | . . . . . Retrieved Components . | . . . . . Parts Scanalyzed 1 | . . . 1 . Part Schematics Acquired 1 | . . . 1 . Parts Damaged . | . . . . . Bothacking | -11 -10 -10 -9 -9 ------------ Run | Yrd Mat Min Mat Min Used RIF Installer . | . . . . . Robots Hacked . | . . . . . Non-combat . | . . . . . Combat . | . . . . . Robot Hacks Applied . | . . . . . Relay Couplers Released . | . . . . . Fabnet Peak Effective % . | . . . . . Robots Rewired . | . . . . . Allies Hacked . | . . . . . Hacks Repelled . | . . . . . Allies | -11 -10 -10 -9 -9 -------- Run | Yrd Mat Min Mat Min Total Allies . | . . . . . Largest Group . | . . . . . Highest-Rated Group . | . . . . . Highest-Rated Ally . | . . . . . Total Orders . | . . . . . Ally Attacks . | . . . . . Total Damage . | . . . . . Kills . | . . . . . Allies Corrupted . | . . . . . Allies Melted . | . . . . . Intel | -11 -10 -10 -9 -9 ------- Run | Yrd Mat Min Mat Min Active Infowar (turns) 390 | . 390 . . . Terrain 390 | . 390 . . . Robot Analysis Total . | . . . . . Derelict Logs Recovered 2 | . . . . 2 Drone Launches . | . . . . . Drone Recoveries . | . . . . . Exploration | -11 -10 -10 -9 -9 ------------- Run | Yrd Mat Min Mat Min Turns Passed 3217 | 64 1125 266 1080 682 Spaces Moved 1202 | 42 382 77 389 312 Core 24 | 15 . . . 9 Treads 1178 | 27 382 77 389 303 Legs . | . . . . . Wheels . | . . . . . Hover . | . . . . . Flight . | . . . . . Fastest Speed 50 | 50 160 320 200 50 Average Speed 226 | 120 255 320 215 195 Slowest Speed 320 | 160 320 320 240 200 Overloaded Moves . | . . . . . Propulsion Burnouts . | . . . . . Robots Hopped . | . . . . . Potential Cave-ins . | . . . . . Cave-ins Triggered . | . . . . . Exploration Rate (%) 38 | 4 49 29 42 68 Regions Visited 4 Branch Regions 2 Pre-discovered Areas . | . . . . . Known Exits Taken 2 | . 1 . 1 . Unknown Exits Taken 2 | 1 . 1 . . Scrap Searched . | . . . . . Spaces Dug . | . . . . . Terrain Destroyed 93 | . . 93 . . Melee . | . . . . . Projectile . | . . . . . AOE 93 | . . 93 . . Terrain Rammed . | . . . . . Walls Destroyed . | . . . . . Machines Disabled . | . . . . . Actions | -11 -10 -10 -9 -9 --------- Run | Yrd Mat Min Mat Min Total 1524 | 55 486 88 549 346 Wait 137 | . 48 . 77 12 Move 1198 | 41 381 76 388 312 Hop . | . . . . . Pick Up 46 | 9 14 1 22 . Fast Attach 2 | . 1 . 1 . Attach 16 | 5 4 . 7 . Detach . | . . . . . Swap 7 | . . 1 4 2 Drop 9 | . 4 . 5 . Fire 105 | . 34 10 45 16 Melee 1 | . . . . 1 Ram . | . . . . . Kick . | . . . . . Crush 3 | . . . . 3 Escape Stasis . | . . . . . Rewire . | . . . . . Trap . | . . . . . Miscellaneous . | . . . . . Route ------- -11/Scrapyard -10/Materials (discovered 3 exits: *Mat x2 / *Min) -10/Mines -9/Materials (discovered 2 exits: [*Mat] / *Min) -9/Mines (discovered 2 exits: [*Mat x2]) History --------- Turn | Location | Event 2 | -11/Scrapyard | Met Revision 17 23 | -11/Scrapyard | Discovered new exit (range 16) 65 | -11/Scrapyard | Entered Materials 104 | -10/Materials | Discovered new exit (range 13) 315 | -10/Materials | Build established: Mutant 320 | -10/Materials | Discovered new exit (range 8) 615 | -10/Materials | Repaired Lgt. Treads 651 | -10/Materials | Discovered new exit (range 15) 1069 | -10/Materials | Identified exit to Mines 1190 | -10/Materials | Entered Mines 1197 | -10/Mines | Received a Rocket Launcher from a helpful Derelict 1421 | -10/Mines | Discovered new exit (range 9) 1456 | -10/Mines | Entered Materials 1456 | -9/Materials | Evolved 2 slots: Propulsion x1, Utility x1 1492 | -9/Materials | Identified exit to Mines 2089 | -9/Materials | Discovered new exit (range 16) 2145 | -9/Materials | Repaired Hrd. Light Armor Plating 2536 | -9/Materials | Entered Mines 2556 | -9/Mines | Met a Derelict bent on vengeance 2592 | -9/Mines | Discovered new exit (range 9) 2624 | -9/Mines | Learned Materials stockpile data 2654 | -9/Mines | Learned Materials emergency access door positions 3085 | -9/Mines | Discovered new exit (range 7) 3178 | -9/Mines | Assembled infested the area 3214 | -9/Mines | Released all parts (6) 3215 | -9/Mines | Core integrity fell below 50% 3218 | -9/Mines | Destroyed by D-53 Grenadier with Mini Grenade Launcher Last Messages --------------- 03178_ ALERT: Infestation in the mines, dispatching Demolisher response squad. 03185_ G-34 Mercenary destroyed. 03211_ T-07 Excavator is excavating. 03213_ C-45 Heavy ARC bursts open, deploying its payload. 03213_ D-53 Grenadier unfolds itself. 03213_ Lgt. Treads+ destroyed. 03213_ Imp. Ion Engine destroyed. 03214_ Released Med. Laser. 03214_ Released Hcp. Battery. 03214_ Released Lgt. Treads+. 03214_ Released Huge Storage Unit. 03214_ Released Hrd. Light Armor Plating. 03214_ Released Spread Laser. [Achievement: Live, Flee, And Rebuild] 03215_ T-07 Excavator is excavating. 03215_ K-01 Serf collects debris. 03216_ U-05 Engineer builds a Wall. 03216_ K-01 Serf destroyed. Map ----- +----------------------------------------------------+ | #??## #?????????????????????????????????????? | | #???## ##?????????????????????????????????????? | | #????## ##?????????????????????????????????????? | | #?????# ###???????????????????????????????????? | | #?????# ##??????????????????????????????????? | | ##????## #??????????????????????????????????? | | ##????## ##?????????????????????????????????? | | #?????# ##????????????????????????????????? | | #?????# #????????????????????????????????? | | #??????## #???????# ???????????????????????? | | ##???????# ###?????## ???????????????????????? | | ##????????# ##??????## ???????????????????????? | | #????????## #??????## ???????????????????????? | | ##??????## ##????## a ???????????????????????? | | #?????## #????# a##?????????????????????? | | ##???## #????? ##????????????????????? | | ##### #????? #????????????????????? | | ##?????? #????????????????????? | | # ##???????? #????????????????????? | | # ####?????????# ##???????????????????? | | ##????????????# #?####?####????????# | | ##???????###### ?## ### ##?????? | | ####???## ### ### ##?### | | #??## ## = ## ![= ## | | ##?## % =! = | | #### ######??# @ d ![ | | #######???????# k = | | =% #?????????## k## d | | ## #??????????# #### | | ## ############ #??# ## ### | | # #?# """ # ######??? | | # #####?# """ # ###????????? | | "" """ """ # #?????## """ ### #????????????? | | "" """ """ # #??###### ##?# #?????????????? | | "" """ """ # #?## #### #??# #??????????????? | | # ### #?## ##??# #??????????????? | | "" """ """ # ## #??#####??? ??????????????? | | "" """ """ # # #?????????? #?????????????? | | "" """ """ #?????????? ##?????????????? | | #### #????????? #??????????????? | | #??# #????????####??????????????? | | #??# < #?????????????????????????? | | ############??# #?????????????????????????? | | ??????????????## ##?????????????????????????? | | ???????????????########??????????????????????????? | | ?????????????????????????????????????????????????? | | | | | | | | | +----------------------------------------------------+ Best States ------------- Heat Dissipation 28 Energy Generation 12 Energy Capacity 515 Matter Stores 300 Matter Capacity 300 Sight Range 16 Terrain Scan Range 14 Terrain Scan Density 10 Armor Coverage 150 Evasion (%) 50 Recoil Reduction 3 Item Schematics ----------------- Huge Storage Unit | -9/Materials | Scanalyzed Robot Schematics ------------------ None Fabricated ------------ Nothing Repaired ---------- Lgt. Treads | 67% | -10/Materials Hrd. Light Armor Plating | 11% | -9/Materials Studied --------- Lgt. Treads | -9/Materials | Hacked Alien Tech Used ----------------- None Achievements -------------- Live, Flee, And Rebuild Challenges ------------ None Game ------ Seed LinkedMobileArticulator Manual? 0 Play Time 00:27:31 Cumulative 30.3 hours Start 2026.07.15 @ 12:48:45 End 2026.07.15 @ 13:30:31 Sessions 1 Manual Loads 0 Difficulty Rogue Special Mode None Game No. 29 Rogue 29 Adventurer 0 Explorer 0 Win Type - Total 1 Types 1/0/0/0/0/0/0/0/0/0 Lore% 26 Gallery% 29 Achievement% 22 Wizard Run 0 Options --------- Layout 1 ASCII 0 Keyboard 0 Movement Mouse Keybinds 0 Fullscreen 1 Font 32/SmallcapsGlow Map View 50x35 Zoom Use 0% Tactical HUD 1 Map Filters NONE Filters NONE Steam 1 RUN: 491182d8-1f56-4437-a6ec-0a893d14c0b4